bitfinex-derivatives/quotes_BTCF0:USTF0_20250427
["timestamp","ask_amount","ask_price","bid_price","bid_amount"]
[1745739896574,0.0327,94136.0,94135.0,0.6055126]
[1745739896979,0.3608,94149.0,94148.0,0.2123847]
[1745739897279,0.3608,94149.0,94148.0,0.3323847]
[1745739898277,0.3608,94149.0,94148.0,0.3649847]
[1745739899289,0.3648,94149.0,94148.0,0.3659847]
[1745739899984,0.004,94149.0,94148.0,0.3659847]
[1745739901679,0.0345,94149.0,94148.0,0.3589847]
[1745739908889,0.0345,94149.0,94148.0,0.3519847]
[1745739910285,0.2468824,94149.0,94148.0,0.3519847]
[1745739910995,0.0345,94149.0,94148.0,0.3519847]
[1745739911682,0.0673,94149.0,94148.0,0.3519847]
[1745739912084,0.2796824,94149.0,94148.0,0.3519847]
[1745739915996,0.2796824,94149.0,94148.0,0.3449847]
[1745739919707,0.2796824,94149.0,94148.0,0.121]
[1745739919895,0.0531,94142.0,94135.0,0.06428]
[1745739920100,0.3608,94139.0,94118.0,0.3608]
[1745739920300,0.2655618,94121.0,94120.0,0.2655492]
[1745739920693,0.2655618,94121.0,94120.0,0.2124382]
[1745739922403,0.2655618,94121.0,94120.0,0.2144382]
[1745739923102,0.2655618,94121.0,94120.0,0.2074382]
[1745739926211,0.2124501,94121.0,94120.0,0.2074382]
[1745739930111,0.2124501,94121.0,94120.0,0.2004382]
[1745739936204,0.2124501,94121.0,94120.0,0.2324382]
[1745739937216,0.2124614,94114.0,94112.0,0.3608]
[1745739937411,0.2124614,94114.0,94112.0,0.4265]
[1745739937612,0.2124614,94114.0,94113.0,0.2124605]
[1745739938011,0.2764614,94114.0,94113.0,0.2124605]
[1745739938507,0.2774614,94114.0,94113.0,0.2154605]
[1745739940609,0.2974614,94114.0,94113.0,0.2154605]
[1745739944312,0.2974614,94114.0,94113.0,0.2084605]
[1745739947118,0.085,94114.0,94111.0,0.00159384]
[1745739947313,0.2656056,94109.0,94108.0,0.2655858]
[1745739947513,0.2956056,94109.0,94108.0,0.2655858]
[1745739947712,0.2956056,94109.0,94108.0,0.2124675]
[1745739948325,0.3579056,94109.0,94108.0,0.2124675]
[1745739948627,0.3579056,94109.0,94108.0,0.2144675]
[1745739951415,0.3579056,94109.0,94108.0,0.2074675]
[1745739956325,0.3579056,94109.0,94108.0,0.2381675]
[1745739959521,0.3579056,94109.0,94108.0,0.2311675]
[1745739960223,0.1454199,94109.0,94097.0,0.43055364]
[1745739960424,0.2124908,94102.0,94101.0,0.2124887]
[1745739960723,0.2324908,94102.0,94101.0,0.2124887]
[1745739960931,0.2639908,94102.0,94101.0,0.2124887]
[1745739961520,0.2952908,94102.0,94101.0,0.2960107]
[1745739961728,0.2952908,94102.0,94101.0,0.3278107]
[1745739961927,0.2637908,94102.0,94101.0,0.3278107]
[1745739962315,0.2647908,94102.0,94101.0,0.3288107]
[1745739962521,0.0523,94102.0,94101.0,0.3288107]
[1745739962920,0.021,94102.0,94101.0,0.3288107]
[1745739963124,0.001,94102.0,94101.0,0.4488107]
[1745739964130,0.001,94102.0,94101.0,0.5132507]
[1745739964632,0.00084138,94102.0,94101.0,0.5132507]
[1745739966627,0.00084138,94102.0,94101.0,0.5062507]
[1745739967523,0.00084138,94102.0,94101.0,0.8670507]
[1745739973335,0.00084138,94102.0,94101.0,0.5062507]
[1745739973536,0.00084138,94102.0,94101.0,0.8670507]
[1745739973738,0.00084138,94102.0,94101.0,0.8600507]
[1745739980644,0.00084138,94102.0,94101.0,0.8530507]
[1745739981442,0.00084138,94102.0,94101.0,0.7886107]
[1745739981747,0.21332988,94102.0,94101.0,0.3656107]
[1745739982243,0.24522988,94102.0,94101.0,0.2456107]
[1745739986044,0.24522988,94102.0,94101.0,0.1924887]
[1745739987149,0.36522988,94102.0,94101.0,0.1924887]
[1745739987747,0.36522988,94102.0,94101.0,0.1854887]
[1745739988141,0.24522988,94102.0,94101.0,0.1854887]
[1745739993549,0.24522988,94102.0,94101.0,0.001]
[1745739993738,0.24522988,94102.0,94101.0,0.2134908]
[1745739994938,0.24522988,94102.0,94101.0,0.2064908]
[1745739995244,0.36522988,94102.0,94101.0,0.2064908]
[1745739996140,0.24522988,94102.0,94101.0,0.2064908]
[1745740001848,0.24522988,94102.0,94101.0,0.1994908]
[1745740002445,0.24522988,94102.0,94101.0,0.2931908]
[1745740004455,0.03274138,94102.0,94101.0,0.2931908]
[1745740004653,0.00084138,94102.0,94101.0,0.2931908]
[1745740004951,0.00812574,94123.0,94122.0,0.2124434]
[1745740005139,0.212429,94129.0,94128.0,0.2124276]
[1745740005340,0.10531216,94130.0,94129.0,0.2124276]
[1745740005544,0.31773746,94130.0,94129.0,0.2124276]
[1745740005752,0.2429253,94130.0,94129.0,0.2124276]
[1745740006148,0.3629253,94130.0,94129.0,0.2124276]
[1745740006349,0.3934253,94130.0,94129.0,0.2124276]
[1745740006548,0.3994253,94130.0,94129.0,0.2134276]
[1745740007350,0.40721384,94130.0,94129.0,0.2134276]
[1745740008053,0.37671384,94130.0,94129.0,0.2134276]
[1745740008246,0.0365,94130.0,94129.0,0.2134276]
[1745740008649,0.006,94130.0,94129.0,0.2134276]
[1745740008846,1e-07,94130.0,94129.0,0.2134276]
[1745740009049,1e-07,94130.0,94129.0,0.3126636]
[1745740009358,1e-07,94130.0,94129.0,0.4326636]
[1745740009750,1e-07,94130.0,94129.0,0.4974236]
[1745740010753,1e-07,94130.0,94129.0,1.2786036]
[1745740012143,0.07481216,94150.0,94149.0,0.2123824]
[1745740012349,0.3608,94151.0,94150.0,0.2123802]
[1745740012750,0.3917,94151.0,94150.0,0.2444802]
[1745740013150,0.0309,94151.0,94150.0,0.3644802]
[1745740015758,0.0309,94151.0,94150.0,0.37514514]
[1745740016154,0.0329,94151.0,94150.0,0.24814514]
[1745740016359,0.0329,94151.0,94150.0,0.2374802]
[1745740016954,0.1429,94151.0,94150.0,0.2374802]
[1745740017147,0.1429,94151.0,94150.0,0.3574802]
[1745740019759,0.1429,94151.0,94150.0,0.3878802]
[1745740021255,0.1429,94151.0,94150.0,0.2678802]
[1745740023866,0.1429,94151.0,94150.0,0.3010802]
[1745740024166,0.1429,94151.0,94150.0,0.2940802]
[1745740025457,0.1429,94151.0,94150.0,0.3588002]
[1745740027068,0.1429,94151.0,94150.0,0.2963002]
[1745740028964,0.0329,94151.0,94150.0,0.2963002]
[1745740031159,0.0329,94151.0,94150.0,0.2893002]
[1745740031759,0.0329,94151.0,94150.0,0.3208002]
[1745740037169,0.0329,94151.0,94150.0,0.4408002]
[1745740037376,0.0323,94157.0,94156.0,0.2123667]
[1745740037561,0.0332,94167.0,94157.0,0.2123644]
[1745740037765,0.07468643,94170.0,94169.0,0.2123373]
[1745740037964,0.0324,94178.0,94177.0,0.2123193]
[1745740038466,0.04025562,94178.0,94177.0,0.2053193]
[1745740039061,0.0324,94178.0,94177.0,0.2371193]
[1745740039261,0.0324,94178.0,94177.0,0.2671193]
[1745740039463,0.0831208,94179.0,94178.0,0.212317]
[1745740039673,0.0831208,94179.0,94178.0,0.273017]
[1745740040174,0.0831208,94179.0,94178.0,0.243017]
[1745740040973,0.1144208,94179.0,94178.0,0.243017]
[1745740041175,0.0313,94179.0,94178.0,0.243017]
[1745740041374,0.0373,94179.0,94178.0,0.244017]
[1745740041772,0.0373,94179.0,94178.0,0.275617]
[1745740045380,0.0373,94179.0,94178.0,0.268617]
[1745740052077,0.0373,94179.0,94178.0,0.333097]
[1745740052479,0.0373,94179.0,94178.0,0.326097]
[1745740059581,0.0373,94179.0,94178.0,0.319097]
[1745740064885,0.2496148,94179.0,94178.0,0.287497]
[1745740065184,0.2801148,94179.0,94178.0,0.287497]
[1745740066483,0.2801148,94179.0,94178.0,0.280497]
[1745740067582,0.0678,94179.0,94178.0,0.280497]
[1745740069685,0.2801148,94179.0,94178.0,0.280497]
[1745740070886,0.0678,94179.0,94178.0,0.280497]
[1745740071088,0.0678,94179.0,94178.0,0.310897]
[1745740071880,0.006,94179.0,94178.0,0.310897]
[1745740073591,0.0385,94179.0,94178.0,0.303897]
[1745740075886,0.0052,94188.0,94187.0,0.2122968]
[1745740076281,0.0052,94188.0,94187.0,0.2754968]
[1745740076876,0.0052,94188.0,94187.0,0.2764968]
[1745740077081,0.0132,94188.0,94187.0,0.2764968]
[1745740077281,0.0132,94188.0,94187.0,0.3070968]
[1745740080679,0.0132,94188.0,94187.0,0.3000968]
[1745740082695,0.2122572,94205.0,94187.0,0.3000968]
[1745740082696,0.07468643,94200.0,94189.0,0.0530729]
[1745740082989,0.07468643,94200.0,94199.0,0.5730697]
[1745740083188,0.0624,94210.0,94206.0,0.053063]
[1745740083189,0.07468643,94209.0,94206.0,0.053063]
[1745740083388,0.0304,94210.0,94209.0,0.2122472]
[1745740083585,0.0326,94212.0,94210.0,0.2122449]
[1745740084189,0.12313441,94211.0,94210.0,0.2122449]
[1745740084590,0.0052,94218.0,94210.0,0.001]
[1745740084786,1e-08,94218.0,94217.0,0.5730292]
[1745740084987,1e-08,94218.0,94217.0,0.6372692]
[1745740085380,1e-08,94218.0,94217.0,0.7005692]
[1745740086180,0.12000001,94218.0,94217.0,0.7005692]
[1745740087093,0.12000001,94218.0,94217.0,0.7025692]
[1745740087796,0.12000001,94218.0,94217.0,0.6955692]
[1745740094790,0.12000001,94218.0,94217.0,0.3277692]
[1745740094990,0.12000001,94218.0,94217.0,0.6885692]
[1745740098200,1e-08,94218.0,94217.0,0.6885692]
[1745740101295,0.12000001,94218.0,94217.0,0.6885692]
[1745740101902,0.12000001,94218.0,94217.0,0.6815692]
[1745740102105,0.12000001,94218.0,94217.0,0.1932292]
[1745740102506,0.12000001,94218.0,94217.0,0.2576692]
[1745740103606,0.18310001,94218.0,94217.0,0.2576692]
[1745740109109,0.18310001,94218.0,94217.0,0.2506692]
[1745740112511,0.15020001,94218.0,94217.0,0.2506692]
[1745740113213,0.03038224,94218.0,94217.0,0.2506692]
[1745740116014,0.03038224,94218.0,94217.0,0.2436692]
[1745740117116,0.15038224,94218.0,94217.0,0.2436692]
[1745740119217,0.03038224,94218.0,94217.0,0.2436692]
[1745740120108,0.15038224,94218.0,94217.0,0.2436692]
[1745740121416,0.15038224,94218.0,94217.0,0.3077692]
[1745740123217,0.15038224,94218.0,94217.0,0.3007692]
[1745740124609,0.15038224,94218.0,94217.0,0.6615692]
[1745740127623,0.15038224,94218.0,94217.0,0.3007692]
[1745740127924,0.15038224,94218.0,94217.0,0.6615692]
[1745740128521,0.15038224,94218.0,94217.0,0.3007692]
[1745740128718,0.15038224,94218.0,94217.0,0.6615692]
[1745740129625,0.15038224,94218.0,94217.0,0.3007692]
[1745740129823,0.15038224,94218.0,94217.0,0.6615692]
[1745740130325,0.15038224,94218.0,94217.0,0.6545692]
[1745740130718,0.36260914,94218.0,94217.0,0.5260292]
[1745740130915,0.36260914,94218.0,94217.0,0.5902692]
[1745740131518,0.39430914,94218.0,94217.0,0.5902692]
[1745740132425,0.39430914,94218.0,94217.0,0.5882692]
[1745740132625,0.39430914,94218.0,94217.0,0.5902692]
[1745740133016,0.39430914,94218.0,94217.0,0.5882692]
[1745740133216,0.39430914,94218.0,94217.0,0.5902692]
[1745740137517,0.39330914,94218.0,94217.0,0.5902692]
[1745740138127,0.39330914,94218.0,94217.0,0.5832692]
[1745740139522,0.39330914,94218.0,94217.0,0.5190292]
[1745740139723,0.49942594,94218.0,94217.0,0.2764692]
[1745740143833,0.44636654,94218.0,94217.0,0.2764692]
[1745740145132,0.44636654,94218.0,94217.0,0.2694692]
[1745740149838,0.18108224,94218.0,94217.0,0.3023692]
[1745740150026,0.14938224,94218.0,94217.0,0.3023692]
[1745740150231,0.14938224,94218.0,94217.0,0.3633692]
[1745740150431,0.14938224,94218.0,94217.0,0.3061292]
[1745740150738,0.14938224,94218.0,94217.0,0.3703692]
[1745740152335,0.02938224,94218.0,94217.0,0.3633692]
[1745740152730,0.00018223,94218.0,94217.0,0.3633692]
[1745740153536,0.00018223,94218.0,94217.0,0.7241692]
[1745740159343,0.00018223,94218.0,94217.0,0.7171692]
[1745740164340,0.12018223,94218.0,94217.0,0.7171692]
[1745740164732,0.33240913,94218.0,94217.0,0.7171692]
[1745740165438,0.36510913,94218.0,94217.0,0.7171692]
[1745740166533,0.36510913,94218.0,94217.0,0.7101692]
[1745740166732,0.36510913,94218.0,94217.0,0.3493692]
[1745740166929,0.36510913,94218.0,94217.0,0.7101692]
[1745740169442,0.36510913,94218.0,94217.0,0.3493692]
[1745740169641,0.36510913,94218.0,94217.0,0.7101692]
[1745740173142,0.15288223,94218.0,94217.0,0.7101692]
[1745740173440,0.15288223,94218.0,94217.0,0.7031692]
[1745740177842,0.0013,94241.0,94227.0,0.0530511]
[1745740178144,0.2121931,94234.0,94233.0,0.2121909]
[1745740178535,0.2451931,94234.0,94233.0,0.2121909]
[1745740179239,0.3986931,94234.0,94233.0,0.2121909]
[1745740180149,0.1865,94234.0,94233.0,0.2121909]
[1745740180650,0.3986909,94234.0,94233.0,0.2051909]
[1745740181147,0.3966909,94234.0,94233.0,0.2051909]
[1745740181348,0.3976909,94234.0,94233.0,0.2051909]
[1745740186334,0.3976909,94234.0,94233.0,0.2381909]
[1745740187244,0.2121931,94233.0,94232.0,0.06424]
[1745740187446,0.2121931,94233.0,94232.0,0.2764354]
[1745740187640,0.2763931,94233.0,94232.0,0.2694354]
[1745740188137,0.3963931,94233.0,94232.0,0.2694354]
[1745740188344,0.3973931,94233.0,94232.0,0.2694354]
[1745740190441,0.3973931,94233.0,94232.0,0.2121954]
[1745740194849,0.3973931,94233.0,94232.0,0.2051954]
[1745740200347,0.0530498,94231.0,94227.0,0.06424]
[1745740200644,0.2122044,94228.0,94227.0,0.2764448]
[1745740201344,0.3322044,94228.0,94227.0,0.2764448]
[1745740201847,0.3322044,94228.0,94227.0,0.2704448]
[1745740203648,0.3322044,94228.0,94227.0,0.3026448]
[1745740204249,0.3322044,94228.0,94227.0,0.3640448]
[1745740209043,0.3322044,94228.0,94227.0,0.3570448]
[1745740212356,0.3322044,94228.0,94227.0,0.2945448]
[1745740216059,0.3322044,94228.0,94227.0,0.2875448]
[1745740220066,0.3322044,94228.0,94227.0,0.2564448]
[1745740221655,0.6930044,94228.0,94227.0,0.2564448]
[1745740222051,0.2122156,94223.0,94222.0,0.2122161]
[1745740223063,0.2122156,94223.0,94222.0,0.2052161]
[1745740223064,0.2757156,94223.0,94222.0,0.2052161]
[1745740223253,0.3957156,94223.0,94222.0,0.2052161]
[1745740223449,0.3957156,94223.0,94222.0,0.2367161]
[1745740229262,0.7565156,94223.0,94222.0,0.2367161]
[1745740230163,0.7565156,94223.0,94222.0,0.2297161]
[1745740230957,0.7242156,94223.0,94222.0,0.2297161]
[1745740231166,0.6042156,94223.0,94222.0,0.2297161]
[1745740232063,0.7242156,94223.0,94222.0,0.2297161]
[1745740232861,0.7242156,94223.0,94222.0,0.1982161]
[1745740233566,0.2652829,94220.0,94219.0,0.2122234]
[1745740233770,0.2122472,94209.0,94208.0,0.06424]
[1745740234163,0.3322472,94209.0,94208.0,0.06424]
[1745740234558,0.3652472,94209.0,94208.0,0.2764894]
[1745740234767,0.3652472,94209.0,94208.0,0.2122494]
[1745740235172,0.3652472,94209.0,94208.0,0.2436494]
[1745740236672,0.3652472,94209.0,94208.0,0.3064494]
[1745740236871,0.3652472,94209.0,94208.0,0.3084494]
[1745740237371,0.3652472,94209.0,94208.0,0.3014494]
[1745740244278,0.3652472,94209.0,94208.0,0.2944494]
[1745740245068,0.2452472,94209.0,94208.0,0.2944494]
[1745740250672,0.2452472,94209.0,94208.0,0.2636494]
[1745740250881,0.2752472,94209.0,94208.0,0.2636494]
[1745740251181,0.3952472,94209.0,94208.0,0.2636494]
[1745740251375,0.3952472,94209.0,94208.0,0.2566494]
[1745740252786,0.3952472,94209.0,94208.0,0.2546494]
[1745740253087,0.3952472,94209.0,94208.0,0.2566494]
[1745740259578,0.3952472,94209.0,94208.0,0.2496494]
[1745740266593,0.3952472,94209.0,94208.0,0.2426494]
[1745740272795,0.153,94209.0,94208.0,0.2426494]
[1745740273495,0.3652472,94209.0,94208.0,0.2426494]
[1745740273699,0.3652472,94209.0,94208.0,0.2356494]
[1745740279691,0.3652472,94209.0,94208.0,0.2036494]
[1745740280700,0.3652472,94209.0,94208.0,0.1966494]
[1745740287902,0.3652472,94209.0,94208.0,0.1896494]
[1745740294997,0.3652472,94209.0,94208.0,0.1826494]
[1745740302009,0.3652472,94209.0,94208.0,0.1756494]
[1745740309011,0.3652472,94209.0,94208.0,0.1686494]
[1745740316203,0.3652472,94209.0,94208.0,0.1616494]
[1745740317706,0.3652472,94209.0,94208.0,0.1302494]
[1745740317908,0.3652472,94209.0,94197.0,0.3608]
[1745740317909,0.0530701,94195.0,94176.0,0.3608]
[1745740318112,0.2653674,94190.0,94189.0,0.2122812]
[1745740318413,0.2122945,94190.0,94189.0,0.2122812]
[1745740318811,0.0626,94191.0,94190.0,0.21229]
[1745740319008,0.2443878,94191.0,94190.0,0.21229]
[1745740319511,0.2443878,94191.0,94190.0,0.27479]
[1745740321111,0.2443878,94191.0,94190.0,0.30709]
[1745740322420,0.2443878,94191.0,94190.0,0.30809]
[1745740324022,0.2443878,94191.0,94190.0,0.30109]
[1745740326024,0.2443878,94191.0,94190.0,0.30009]
[1745740326324,0.2443878,94191.0,94190.0,0.30109]
[1745740329718,0.2443878,94191.0,94190.0,0.23779]
[1745740329919,0.2443878,94191.0,94190.0,0.20629]
[1745740331118,0.2443878,94191.0,94190.0,0.19929]
[1745740334323,0.2443878,94191.0,94190.0,0.26299]
[1745740338129,0.2443878,94191.0,94190.0,0.25599]
[1745740340235,0.3643878,94191.0,94190.0,0.25599]
[1745740341821,0.3643878,94191.0,94190.0,0.25699]
[1745740342334,0.3643878,94191.0,94190.0,0.25599]
[1745740344926,0.3643878,94191.0,94190.0,0.22349]
[1745740345128,0.3643878,94191.0,94190.0,0.001]
[1745740345433,0.2122923,94189.0,94188.0,0.0582]
[1745740345819,0.5730923,94189.0,94188.0,0.0582]
[1745740346023,0.6044923,94189.0,94188.0,0.0582]
[1745740346332,0.7244923,94189.0,94188.0,0.0582]
[1745740348225,0.7568923,94189.0,94188.0,0.0582]
[1745740348419,0.76590604,94189.0,94188.0,0.0582]
[1745740349334,0.7578923,94189.0,94188.0,0.0582]
[1745740352425,0.7578923,94189.0,94188.0,0.0512]
[1745740353128,0.7578923,94189.0,94188.0,0.082]
[1745740353340,0.7578923,94189.0,94188.0,0.1123]
[1745740354226,0.76577377,94189.0,94188.0,0.1123]
[1745740355236,0.76577377,94189.0,94188.0,0.0512]
[1745740359438,0.76577377,94189.0,94188.0,0.0442]
[1745740366629,0.76577377,94189.0,94188.0,0.0372]
[1745740371140,0.76577377,94189.0,94188.0,0.068]
[1745740372243,0.76577377,94189.0,94188.0,0.0308]
[1745740373441,0.76577377,94189.0,94188.0,0.0622]
[1745740373639,0.76577377,94189.0,94188.0,0.0552]
[1745740376238,0.64577377,94189.0,94188.0,0.0552]
[1745740380750,0.64577377,94189.0,94188.0,0.0482]
[1745740387443,0.28497377,94189.0,94188.0,0.0482]
[1745740387648,0.64577377,94189.0,94188.0,0.0482]
[1745740387843,0.64577377,94189.0,94188.0,0.0412]
[1745740391957,0.64577377,94189.0,94188.0,0.0314]
[1745740394855,0.64577377,94189.0,94188.0,0.0244]
[1745740399059,0.28497377,94189.0,94188.0,0.0244]
[1745740399254,0.64577377,94189.0,94188.0,0.0244]
[1745740400656,0.28497377,94189.0,94188.0,0.0244]
[1745740400862,0.64577377,94189.0,94188.0,0.0244]
[1745740401858,0.64577377,94189.0,94188.0,0.0174]
[1745740403865,0.2122945,94188.0,94187.0,0.00530856]
[1745740404051,0.2451945,94188.0,94187.0,0.00530856]
[1745740404258,0.3085945,94188.0,94187.0,0.00530856]
[1745740404453,0.6693945,94188.0,94187.0,0.00530856]
[1745740405763,0.6703945,94188.0,94187.0,0.00530856]
[1745740408969,0.2122968,94187.0,94186.0,0.24340656]
[1745740409470,0.2768968,94187.0,94186.0,0.24340656]
[1745740416070,0.2768968,94187.0,94186.0,0.23640656]
[1745740419683,0.2768968,94187.0,94186.0,0.212298]
[1745740423079,0.2768968,94187.0,94186.0,0.205298]
[1745740430193,0.2768968,94187.0,94186.0,0.198298]
[1745740437983,0.2768968,94187.0,94186.0,0.191298]
[1745740445095,0.2768968,94187.0,94186.0,0.184298]
[1745740452298,0.2768968,94187.0,94186.0,0.177298]
[1745740459307,0.2768968,94187.0,94186.0,0.170298]
[1745740463310,0.2768968,94187.0,94185.0,0.0308]
[1745740463311,0.212299,94186.0,94185.0,0.0308]
[1745740463503,0.274799,94186.0,94185.0,0.0308]
[1745740464303,0.2123013,94185.0,94184.0,0.212302]
[1745740464504,0.2761013,94185.0,94184.0,0.212302]
[1745740466126,0.6369013,94185.0,94184.0,0.212302]
[1745740466327,0.6369013,94185.0,94184.0,0.205302]
[1745740472826,0.2761013,94185.0,94184.0,0.205302]
[1745740473026,0.6369013,94185.0,94184.0,0.205302]
[1745740473432,0.6369013,94185.0,94184.0,0.198302]
[1745740473632,0.2761013,94185.0,94184.0,0.198302]
[1745740473835,0.6369013,94185.0,94184.0,0.198302]
[1745740478538,0.6369013,94185.0,94184.0,0.263002]
[1745740479633,0.2761013,94185.0,94184.0,0.263002]
[1745740480028,0.6369013,94185.0,94184.0,0.263002]
[1745740480439,0.6369013,94185.0,94184.0,0.256002]
[1745740482139,0.6369013,94185.0,94184.0,0.376002]
[1745740483142,0.6369013,94185.0,94184.0,0.256002]
[1745740487545,0.6369013,94185.0,94184.0,0.249002]
[1745740492544,0.3937,94185.0,94184.0,0.249002]
[1745740493039,0.0329,94185.0,94184.0,0.369002]
[1745740494641,0.0329,94185.0,94184.0,0.362002]
[1745740499052,0.0329,94185.0,94184.0,0.242002]
[1745740500154,0.0329,94185.0,94184.0,0.362002]
[1745740501250,0.0329,94185.0,94184.0,0.242002]
[1745740501853,0.0329,94185.0,94184.0,0.299162]
[1745740502156,0.0329,94185.0,94184.0,0.419162]
[1745740505060,0.0329,94185.0,94184.0,0.299162]
[1745740507169,0.0329,94185.0,94184.0,0.419162]
[1745740508756,0.0329,94185.0,94184.0,0.412162]
[1745740509362,0.0329,94185.0,94184.0,0.292162]
[1745740511162,0.0329,94185.0,94184.0,0.412162]
[1745740513168,0.0329,94185.0,94184.0,0.292162]
[1745740513359,0.0329,94185.0,94184.0,1.792162]
[1745740514164,0.0329,94185.0,94184.0,1.912162]
[1745740515971,0.0329,94185.0,94184.0,1.905162]
[1745740517161,0.0329,94185.0,94184.0,1.785162]
[1745740518070,0.0329,94185.0,94184.0,1.905162]
[1745740520171,0.0329,94185.0,94184.0,1.785162]
[1745740520773,0.0329,94185.0,94184.0,0.285162]
[1745740522963,0.0329,94185.0,94184.0,0.278162]
[1745740529987,0.0329,94185.0,94184.0,0.271162]
[1745740536085,0.0329,94185.0,94184.0,1.891162]
[1745740536778,0.0329,94185.0,94184.0,1.893162]
[1745740536982,0.0329,94185.0,94184.0,1.886162]
[1745740540185,0.0329,94185.0,94184.0,1.766122]
[1745740540387,0.0659,94185.0,94184.0,1.766122]
[1745740542283,0.0659,94185.0,94184.0,1.886122]
[1745740544094,0.0659,94185.0,94184.0,1.879122]
[1745740545188,0.0659,94185.0,94184.0,1.759122]
[1745740551194,0.0659,94185.0,94184.0,1.752122]
[1745740558805,0.0659,94185.0,94184.0,1.745122]
[1745740564107,0.0659,94185.0,94184.0,1.713622]
[1745740566007,0.0659,94185.0,94184.0,1.706622]
[1745740569202,0.0659,94185.0,94184.0,1.826622]
[1745740570005,0.0659,94185.0,94184.0,2.187422]
[1745740570301,0.0659,94185.0,94184.0,1.706622]
[1745740570496,0.0659,94185.0,94184.0,2.067422]
[1745740572204,0.0659,94185.0,94184.0,1.706622]
[1745740572395,0.0659,94185.0,94184.0,2.067422]
[1745740573001,0.0659,94185.0,94184.0,2.060422]
[1745740577418,0.0659,94185.0,94184.0,1.699622]
[1745740577618,0.0659,94185.0,94184.0,2.060422]
[1745740577919,0.0659,94185.0,94184.0,1.699622]
[1745740578117,0.0659,94185.0,94184.0,2.180422]
[1745740578425,0.0659,94185.0,94184.0,1.819622]
[1745740578621,0.0659,94185.0,94184.0,2.180422]
[1745740579120,0.0659,94185.0,94184.0,2.060422]
[1745740580214,0.0659,94185.0,94184.0,2.053422]
[1745740585215,0.0659,94185.0,94184.0,2.173422]
[1745740585422,0.0659,94185.0,94184.0,1.812622]
[1745740585606,0.0659,94185.0,94184.0,2.173422]
[1745740586210,0.0659,94185.0,94184.0,2.053422]
[1745740587305,0.0659,94185.0,94184.0,1.685622]
[1745740587506,0.0659,94185.0,94184.0,2.046422]
[1745740589118,0.0659,94185.0,94184.0,2.013222]
[1745740591020,0.172076,94185.0,94175.0,0.3608]
[1745740591210,0.2123419,94167.0,94166.0,0.06412]
[1745740591723,0.2123419,94167.0,94160.0,0.00265505]
[1745740591724,0.2123554,94161.0,94160.0,0.00265505]
[1745740591915,0.0530946,94151.0,94143.0,0.3608]
[1745740592109,0.2123937,94144.0,94143.0,0.3608]
[1745740592315,0.2123982,94142.0,94141.0,0.06234388]
[1745740592518,0.033,94143.0,94142.0,0.2123982]
[1745740592818,0.033,94143.0,94142.0,1.7123982]
[1745740593223,0.153,94143.0,94142.0,1.7123982]
[1745740594211,0.033,94143.0,94142.0,1.8323982]
[1745740594426,0.033,94143.0,94142.0,1.8253982]
[1745740595123,0.033,94143.0,94142.0,1.8273982]
[1745740595321,0.033,94143.0,94142.0,1.7073982]
[1745740599022,0.033,94143.0,94142.0,1.502]
[1745740599230,0.0530996,94142.0,94128.0,0.3608]
[1745740599521,0.2655118,94139.0,94138.0,0.2124027]
[1745740599716,0.2655118,94139.0,94138.0,1.7124027]
[1745740599922,0.3717398,94139.0,94138.0,1.7124027]
[1745740600116,0.3855118,94139.0,94138.0,1.7124027]
[1745740601125,0.2655118,94139.0,94138.0,1.7124027]
[1745740601517,0.2655118,94139.0,94138.0,1.7084027]
[1745740602217,0.3855118,94139.0,94138.0,1.7084027]
[1745740605429,0.3855118,94139.0,94138.0,0.2084027]
[1745740606230,0.2655118,94139.0,94138.0,0.2084027]
[1745740607131,0.3855118,94139.0,94138.0,0.2084027]
[1745740608223,0.2655118,94139.0,94138.0,0.2084027]
[1745740608422,0.2655118,94139.0,94138.0,0.2014027]
[1745740610120,0.2124099,94139.0,94138.0,0.2014027]
[1745740612727,0.4624099,94139.0,94138.0,0.2014027]
[1745740615634,0.4624099,94139.0,94138.0,0.1944027]
[1745740617334,0.4624099,94139.0,94138.0,0.003]
[1745740617822,0.5155127,94139.0,94138.0,0.2094073]
[1745740618223,0.6355127,94139.0,94138.0,0.2094073]
[1745740618733,0.9963127,94139.0,94138.0,0.2094073]
[1745740619240,0.8763127,94139.0,94138.0,0.2094073]
[1745740620227,0.9963127,94139.0,94138.0,0.2094073]
[1745740620434,1.0295127,94139.0,94138.0,0.2094073]
[1745740623834,1.0295127,94139.0,94138.0,0.2024073]
[1745740624037,0.9432099,94139.0,94138.0,0.2024073]
[1745740624243,0.37,94139.0,94138.0,0.2024073]
[1745740624931,0.2655281,94134.0,94133.0,0.2124073]
[1745740625237,0.5055281,94134.0,94133.0,0.2124073]
[1745740626036,0.5055281,94134.0,94133.0,0.2164073]
[1745740629140,0.6255281,94134.0,94133.0,0.2164073]
[1745740629340,0.6255281,94134.0,94133.0,0.2128963]
[1745740630143,0.5055281,94134.0,94133.0,0.2128963]
[1745740631042,0.5055281,94134.0,94133.0,0.2058963]
[1745740632143,0.6255281,94134.0,94133.0,0.2058963]
[1745740633144,0.5055281,94134.0,94133.0,0.2058963]
[1745740638149,0.5055281,94134.0,94133.0,0.1988963]
[1745740644940,0.5055281,94134.0,94133.0,0.2309963]
[1745740645141,0.5055281,94134.0,94133.0,0.2239963]
[1745740652351,0.5055281,94134.0,94133.0,0.2169963]
[1745740653147,0.5055281,94134.0,94133.0,0.3369963]
[1745740654249,0.5055281,94134.0,94133.0,0.2169963]
[1745740656042,0.5055281,94134.0,94133.0,0.3369963]
[1745740659051,0.5375281,94134.0,94133.0,0.3369963]
[1745740659253,0.5375281,94134.0,94133.0,0.3299963]
[1745740662650,0.24,94134.0,94133.0,0.3299963]
[1745740663253,0.24,94134.0,94133.0,1.8299963]
[1745740666358,0.24,94134.0,94133.0,1.8229963]
[1745740667650,0.24,94134.0,94133.0,2.1837963]
[1745740673258,0.24,94134.0,94133.0,2.1767963]
[1745740674163,0.2713,94134.0,94133.0,2.1767963]
[1745740679870,0.3027,94134.0,94133.0,2.1767963]
[1745740680471,0.3027,94134.0,94133.0,2.1697963]
[1745740682572,0.5151163,94134.0,94133.0,2.1697963]
[1745740682869,0.3027,94134.0,94133.0,2.1697963]
[1745740683780,0.5151163,94134.0,94133.0,2.1697963]
[1745740685175,0.2751163,94134.0,94133.0,2.1697963]
[1745740687471,0.2751163,94134.0,94133.0,2.1627963]
[1745740688968,0.0627,94134.0,94133.0,2.1627963]
[1745740691289,0.00016,94138.0,94137.0,0.2124095]